[Event "*** Titled Tuesday Blitz"]
[Site "Chess.com"]
[Date "2020.05.26"]
[Round "3"]
[White "WPWPWP-2015"]
[Black "SerGo055"]
[Result "0-1"]
[WhiteElo "2371"]
[BlackElo "2580"]
[TimeControl "180+1"]
[EndTime "10:28:46 PDT"]
[Termination "SerGo055 won by resignation"]

1. e4 {[%clk 0:03:00.9]} 1... d5 {[%clk 0:02:57]} 2. exd5 {[%clk 0:03:00]} 2...
Qxd5 {[%clk 0:02:54.1]} 3. Qf3 {[%clk 0:02:56.3]} 3... c6 {[%clk 0:02:52.8]} 4.
a3 {[%clk 0:02:50]} 4... Nf6 {[%clk 0:02:52]} 5. Nc3 {[%clk 0:02:47.5]} 5...
Qxf3 {[%clk 0:02:42.3]} 6. Nxf3 {[%clk 0:02:46.3]} 6... Bf5 {[%clk 0:02:40]} 7.
Nd4 {[%clk 0:02:40.4]} 7... Bg6 {[%clk 0:02:38.5]} 8. d3 {[%clk 0:02:39]} 8...
e5 {[%clk 0:02:32.5]} 9. Nb3 {[%clk 0:02:29.7]} 9... Nbd7 {[%clk 0:02:31.4]} 10.
Be2 {[%clk 0:02:26.9]} 10... Bd6 {[%clk 0:02:15]} 11. Be3 {[%clk 0:02:10.2]}
11... Nd5 {[%clk 0:02:08.9]} 12. Bd2 {[%clk 0:02:02.1]} 12... O-O-O {[%clk
0:02:03.8]} 13. O-O-O {[%clk 0:01:53.4]} 13... Rhe8 {[%clk 0:02:01.9]} 14. Bf3
{[%clk 0:01:49.3]} 14... Nxc3 {[%clk 0:01:45.2]} 15. Bxc3 {[%clk 0:01:48.3]}
15... Nc5 {[%clk 0:01:42]} 16. Nd2 {[%clk 0:01:38.3]} 16... f6 {[%clk
0:01:40.6]} 17. Nc4 {[%clk 0:01:34.7]} 17... Ne6 {[%clk 0:01:36.1]} 18. Nxd6+
{[%clk 0:01:31.5]} 18... Rxd6 {[%clk 0:01:35.6]} 19. h4 {[%clk 0:01:30.6]} 19...
Nd4 {[%clk 0:01:25.3]} 20. h5 {[%clk 0:01:06]} 20... Bf7 {[%clk 0:01:16.5]} 21.
Bg4+ {[%clk 0:01:03.7]} 21... Be6 {[%clk 0:01:13.9]} 22. Bxe6+ {[%clk
0:01:00.8]} 22... Nxe6 {[%clk 0:01:13]} 23. g3 {[%clk 0:00:59.6]} 23... Kd7
{[%clk 0:01:00.3]} 24. Rh4 {[%clk 0:00:57.6]} 24... Ke7 {[%clk 0:00:56.2]} 25.
Re1 {[%clk 0:00:48.1]} 25... Kf7 {[%clk 0:00:54.6]} 26. Ra4 {[%clk 0:00:46.5]}
26... a6 {[%clk 0:00:53.6]} 27. Rb4 {[%clk 0:00:41]} 27... b5 {[%clk 0:00:52.7]}
28. Rh4 {[%clk 0:00:40.3]} 28... c5 {[%clk 0:00:50.7]} 29. b3 {[%clk 0:00:39.9]}
29... Nd4 {[%clk 0:00:46.3]} 30. Re3 {[%clk 0:00:35.5]} 30... Nf5 {[%clk
0:00:45.6]} 31. Rhe4 {[%clk 0:00:30.1]} 31... Nxe3 {[%clk 0:00:45.2]} 32. Rxe3
{[%clk 0:00:31]} 32... c4 {[%clk 0:00:30.6]} 33. dxc4 {[%clk 0:00:30.1]} 33...
bxc4 {[%clk 0:00:31.5]} 34. b4 {[%clk 0:00:30.1]} 34... e4 {[%clk 0:00:24.9]}
35. a4 {[%clk 0:00:29.4]} 35... f5 {[%clk 0:00:24.8]} 36. Re1 {[%clk 0:00:23]}
36... g5 {[%clk 0:00:22.8]} 37. hxg6+ {[%clk 0:00:21.4]} 37... hxg6 {[%clk
0:00:23]} 38. Rh1 {[%clk 0:00:21]} 38... g5 {[%clk 0:00:17.8]} 39. Rh7+ {[%clk
0:00:20.5]} 39... Kg6 {[%clk 0:00:18]} 40. Rc7 {[%clk 0:00:19.7]} 40... f4
{[%clk 0:00:16.4]} 41. gxf4 {[%clk 0:00:19.1]} 41... gxf4 {[%clk 0:00:16.2]} 42.
Rxc4 {[%clk 0:00:19.1]} 42... e3 {[%clk 0:00:14.5]} 43. fxe3 {[%clk 0:00:18.8]}
43... fxe3 {[%clk 0:00:14.4]} 44. Rg4+ {[%clk 0:00:18.7]} 44... Kf5 {[%clk
0:00:14.5]} 45. Rg1 {[%clk 0:00:18.7]} 45... e2 {[%clk 0:00:14.1]} 46. Re1
{[%clk 0:00:15]} 46... Kf4 {[%clk 0:00:14]} 47. Rh1 {[%clk 0:00:05.4]} 47... Kf3
{[%clk 0:00:12.7]} 48. b5 {[%clk 0:00:05.4]} 48... axb5 {[%clk 0:00:12.3]} 49.
axb5 {[%clk 0:00:06.3]} 49... Kg2 {[%clk 0:00:11.8]} 50. Re1 {[%clk 0:00:04.4]}
50... Kf2 {[%clk 0:00:12.1]} 51. Kb2 {[%clk 0:00:02.7]} 51... Rd1 {[%clk
0:00:11.1]} 52. Rxe2+ {[%clk 0:00:02.1]} 52... Kxe2 {[%clk 0:00:11]} 53. b6
{[%clk 0:00:03]} 53... Rb8 {[%clk 0:00:10.5]} 54. Kb3 {[%clk 0:00:03.9]} 54...
Rxb6+ {[%clk 0:00:09.9]} 55. Kc4 {[%clk 0:00:04.8]} 55... Rc6+ {[%clk 0:00:10]}
56. Kb3 {[%clk 0:00:05.3]} 56... Rb1+ {[%clk 0:00:09.9]} 57. Bb2 {[%clk
0:00:05]} 57... Rb6+ {[%clk 0:00:09.7]} 58. Kc3 {[%clk 0:00:05.9]} 58... R1xb2
{[%clk 0:00:10.1]} 59. Kd4 {[%clk 0:00:05.7]} 59... Rxc2 {[%clk 0:00:10.1]} 0-1

[Event "*** Titled Tuesday Blitz"]
[Site "Chess.com"]
[Date "2020.05.26"]
[Round "3"]
[White "SlavenPastar"]
[Black "Efremov_Vlad"]
[Result "1-0"]
[WhiteElo "2396"]
[BlackElo "2155"]
[TimeControl "180+1"]
[EndTime "10:28:46 PDT"]
[Termination "SlavenPastar won on time"]

1. d4 {[%clk 0:03:00.9]} 1... d5 {[%clk 0:02:59.5]} 2. c4 {[%clk 0:03:01.4]}
2... e6 {[%clk 0:02:59.7]} 3. Nc3 {[%clk 0:03:02]} 3... Bb4 {[%clk 0:02:58.7]}
4. cxd5 {[%clk 0:03:01.2]} 4... exd5 {[%clk 0:02:58]} 5. Nf3 {[%clk 0:03:01.1]}
5... Nf6 {[%clk 0:02:57.6]} 6. Bd2 {[%clk 0:03:00.1]} 6... c5 {[%clk 0:02:47.8]}
7. e3 {[%clk 0:02:59.4]} 7... Nc6 {[%clk 0:02:46]} 8. Bb5 {[%clk 0:02:57.9]}
8... O-O {[%clk 0:02:43.3]} 9. O-O {[%clk 0:02:56.4]} 9... a6 {[%clk 0:02:38.1]}
10. Bxc6 {[%clk 0:02:53.4]} 10... bxc6 {[%clk 0:02:38.1]} 11. a3 {[%clk
0:02:53.9]} 11... Bxc3 {[%clk 0:02:33.4]} 12. bxc3 {[%clk 0:02:52]} 12... c4
{[%clk 0:02:18.1]} 13. Ne5 {[%clk 0:02:51.5]} 13... Qd6 {[%clk 0:02:15]} 14. Qc2
{[%clk 0:02:46.5]} 14... g6 {[%clk 0:02:04.5]} 15. a4 {[%clk 0:02:42.6]} 15...
Bf5 {[%clk 0:02:03.2]} 16. Qb2 {[%clk 0:02:36.2]} 16... Nd7 {[%clk 0:01:46.8]}
17. Nxd7 {[%clk 0:02:33.8]} 17... Qxd7 {[%clk 0:01:43]} 18. Bc1 {[%clk
0:02:33.1]} 18... Rfb8 {[%clk 0:01:40.9]} 19. Qd2 {[%clk 0:02:29.7]} 19... Rb3
{[%clk 0:01:40.3]} 20. Ba3 {[%clk 0:02:28]} 20... Rab8 {[%clk 0:01:35.2]} 21.
Bc5 {[%clk 0:02:28]} 21... Bd3 {[%clk 0:01:20.9]} 22. Rfe1 {[%clk 0:02:24.1]}
22... Rb2 {[%clk 0:01:16.4]} 23. Qd1 {[%clk 0:02:19.3]} 23... Qf5 {[%clk
0:01:12.4]} 24. Qf3 {[%clk 0:02:13.5]} 24... Qxf3 {[%clk 0:00:56.4]} 25. gxf3
{[%clk 0:02:14.4]} 25... a5 {[%clk 0:00:38.2]} 26. Rec1 {[%clk 0:02:00.5]} 26...
R8b3 {[%clk 0:00:37.3]} 27. Kg2 {[%clk 0:01:51.7]} 27... Re2 {[%clk 0:00:34.4]}
28. Bd6 {[%clk 0:01:45]} 28... Rbb2 {[%clk 0:00:33.4]} 29. Bg3 {[%clk
0:01:44.5]} 29... Rec2 {[%clk 0:00:29.3]} 30. Rxc2 {[%clk 0:01:35.9]} 30... Rxc2
{[%clk 0:00:28]} 31. Ra3 {[%clk 0:01:31.3]} 31... Rb2 {[%clk 0:00:25.2]} 32. Bc7
{[%clk 0:01:07.9]} 32... Rb3 {[%clk 0:00:25]} 33. Ra1 {[%clk 0:01:07.6]} 33...
Rxc3 {[%clk 0:00:21.2]} 34. Bxa5 {[%clk 0:01:07.6]} 34... Rb3 {[%clk 0:00:19.4]}
35. Be1 {[%clk 0:00:39.4]} 35... c3 {[%clk 0:00:19.3]} 36. Rc1 {[%clk
0:00:31.7]} 36... c2 {[%clk 0:00:18.7]} 37. a5 {[%clk 0:00:27.5]} 37... Rb1
{[%clk 0:00:17.6]} 38. Bd2 {[%clk 0:00:28]} 38... Rb2 {[%clk 0:00:14.2]} 39. Kg3
{[%clk 0:00:26.3]} 39... Kf8 {[%clk 0:00:13.9]} 40. Kf4 {[%clk 0:00:26.8]} 40...
Ke7 {[%clk 0:00:14]} 41. e4 {[%clk 0:00:27.1]} 41... Kd7 {[%clk 0:00:12.1]} 42.
Ke5 {[%clk 0:00:20.7]} 42... Ra2 {[%clk 0:00:04.8]} 43. exd5 {[%clk 0:00:18.7]}
43... cxd5 {[%clk 0:00:05.4]} 44. Kxd5 {[%clk 0:00:17.5]} 44... Bf5 {[%clk
0:00:06.1]} 45. Ke5 {[%clk 0:00:12.4]} 45... Ra3 {[%clk 0:00:05.9]} 46. f4
{[%clk 0:00:07.7]} 46... Ke7 {[%clk 0:00:05.7]} 47. d5 {[%clk 0:00:07]} 47...
Kd7 {[%clk 0:00:04.8]} 48. Kf6 {[%clk 0:00:04.1]} 48... Rd3 {[%clk 0:00:04.7]}
49. Be3 {[%clk 0:00:03.3]} 49... Rxd5 {[%clk 0:00:04.6]} 50. a6 {[%clk
0:00:03.7]} 50... Ra5 {[%clk 0:00:04.2]} 51. a7 {[%clk 0:00:02.6]} 51... Be4
{[%clk 0:00:04.7]} 52. Kxf7 {[%clk 0:00:02.9]} 52... Kc7 {[%clk 0:00:04.6]} 53.
Kg8 {[%clk 0:00:03.8]} 53... h5 {[%clk 0:00:04.2]} 54. Kg7 {[%clk 0:00:04.7]}
54... Kb7 {[%clk 0:00:04.1]} 55. Kh6 {[%clk 0:00:05.6]} 1-0

[Event "*** Titled Tuesday Blitz"]
[Site "Chess.com"]
[Date "2020.05.26"]
[Round "3"]
[White "TheoSlade"]
[Black "Ashedu66"]
[Result "1/2-1/2"]
[WhiteElo "2341"]
[BlackElo "2169"]
[TimeControl "180+1"]
[EndTime "10:28:46 PDT"]
[Termination "Game drawn - insufficient material"]

1. d4 {[%clk 0:03:00.9]} 1... d5 {[%clk 0:02:58.8]} 2. c4 {[%clk 0:03:01.3]}
2... c6 {[%clk 0:02:58.3]} 3. Nc3 {[%clk 0:03:01.8]} 3... Nf6 {[%clk 0:02:58]}
4. e3 {[%clk 0:03:02.4]} 4... e6 {[%clk 0:02:56.7]} 5. Nf3 {[%clk 0:03:03]} 5...
Nbd7 {[%clk 0:02:55.9]} 6. Qc2 {[%clk 0:03:03.6]} 6... Be7 {[%clk 0:02:52.5]} 7.
Bd3 {[%clk 0:02:57.9]} 7... O-O {[%clk 0:02:51.5]} 8. O-O {[%clk 0:02:57.8]}
8... b6 {[%clk 0:02:46.2]} 9. e4 {[%clk 0:02:55.7]} 9... dxe4 {[%clk 0:02:44.4]}
10. Nxe4 {[%clk 0:02:55.7]} 10... Bb7 {[%clk 0:02:44.4]} 11. Nxf6+ {[%clk
0:02:53.2]} 11... Nxf6 {[%clk 0:02:43.9]} 12. c5 {[%clk 0:02:33.2]} 12... Qd5
{[%clk 0:02:23]} 13. Bg5 {[%clk 0:02:23.3]} 13... h6 {[%clk 0:02:14.2]} 14. Bf4
{[%clk 0:01:57.2]} 14... bxc5 {[%clk 0:02:05.3]} 15. Rad1 {[%clk 0:01:40.3]}
15... cxd4 {[%clk 0:01:51.5]} 16. Bc4 {[%clk 0:01:33.7]} 16... Qe4 {[%clk
0:01:23.9]} 17. Qxe4 {[%clk 0:01:27.6]} 17... Nxe4 {[%clk 0:01:23.6]} 18. Rxd4
{[%clk 0:01:26.1]} 18... Nf6 {[%clk 0:01:06.3]} 19. Bd6 {[%clk 0:01:26.5]} 19...
Bxd6 {[%clk 0:01:03.6]} 20. Rxd6 {[%clk 0:01:27.4]} 20... Rfd8 {[%clk 0:01:01]}
21. Rfd1 {[%clk 0:01:27.7]} 21... Nd5 {[%clk 0:01:00.2]} 22. Rxd8+ {[%clk
0:01:23.9]} 22... Rxd8 {[%clk 0:01:00]} 23. Ne5 {[%clk 0:01:22.8]} 23... c5
{[%clk 0:00:56.8]} 24. f3 {[%clk 0:01:12.6]} 24... Kf8 {[%clk 0:00:53.5]} 25.
Rc1 {[%clk 0:01:08.1]} 25... Nb6 {[%clk 0:00:39.4]} 26. Rc2 {[%clk 0:01:00.4]}
26... Ke7 {[%clk 0:00:35.6]} 27. Kf2 {[%clk 0:00:59.5]} 27... Rd4 {[%clk
0:00:22.9]} 28. Be2 {[%clk 0:00:59.1]} 28... Nd7 {[%clk 0:00:12.1]} 29. Nxd7
{[%clk 0:00:56.2]} 29... Kxd7 {[%clk 0:00:11.3]} 30. Rxc5 {[%clk 0:00:56.5]}
30... Rd5 {[%clk 0:00:10.7]} 31. Rxd5+ {[%clk 0:00:52.8]} 31... Bxd5 {[%clk
0:00:10.2]} 32. a3 {[%clk 0:00:49.7]} 32... Kd6 {[%clk 0:00:10.4]} 33. Ke3
{[%clk 0:00:50.2]} 33... e5 {[%clk 0:00:09.1]} 34. Kd3 {[%clk 0:00:47.9]} 34...
f5 {[%clk 0:00:09]} 35. b4 {[%clk 0:00:46.9]} 35... e4+ {[%clk 0:00:08.9]} 36.
Kd4 {[%clk 0:00:43.8]} 36... exf3 {[%clk 0:00:08.1]} 37. gxf3 {[%clk 0:00:44.2]}
37... g5 {[%clk 0:00:07.5]} 38. b5 {[%clk 0:00:41.4]} 38... f4 {[%clk
0:00:07.6]} 39. a4 {[%clk 0:00:40.7]} 39... h5 {[%clk 0:00:07.7]} 40. a5 {[%clk
0:00:35.4]} 40... g4 {[%clk 0:00:07.2]} 41. fxg4 {[%clk 0:00:34.5]} 41... f3
{[%clk 0:00:07.4]} 42. Bd3 {[%clk 0:00:26.2]} 42... hxg4 {[%clk 0:00:07.3]} 43.
Ke3 {[%clk 0:00:18.1]} 43... Ke5 {[%clk 0:00:06.7]} 44. b6 {[%clk 0:00:13.8]}
44... axb6 {[%clk 0:00:06.1]} 45. axb6 {[%clk 0:00:14.7]} 45... Bb7 {[%clk
0:00:06.2]} 46. Bb5 {[%clk 0:00:12]} 46... Kd6 {[%clk 0:00:06.3]} 47. Bd3 {[%clk
0:00:10.7]} 47... Kc5 {[%clk 0:00:06.4]} 48. Bf5 {[%clk 0:00:11.1]} 48... Kxb6
{[%clk 0:00:05.9]} 49. Bxg4 {[%clk 0:00:11.7]} 49... Kc5 {[%clk 0:00:06.1]} 50.
Bxf3 {[%clk 0:00:12.3]} 50... Bxf3 {[%clk 0:00:05.8]} 51. Kxf3 {[%clk
0:00:13.2]} 51... Kd6 {[%clk 0:00:06.1]} 52. Ke4 {[%clk 0:00:13.3]} 52... Ke7
{[%clk 0:00:06.1]} 53. Kf5 {[%clk 0:00:13.9]} 53... Kf8 {[%clk 0:00:06.2]} 54.
Kg6 {[%clk 0:00:14.5]} 54... Kg8 {[%clk 0:00:06.5]} 55. Kh6 {[%clk 0:00:14.2]}
55... Kh8 {[%clk 0:00:06.6]} 56. Kg6 {[%clk 0:00:13.8]} 56... Kg8 {[%clk
0:00:06.9]} 57. Kh5 {[%clk 0:00:14.2]} 57... Kh8 {[%clk 0:00:06.9]} 58. h4
{[%clk 0:00:14.5]} 58... Kg8 {[%clk 0:00:07.1]} 59. Kh6 {[%clk 0:00:15.1]} 59...
Kh8 {[%clk 0:00:07.4]} 60. Kg6 {[%clk 0:00:15.3]} 60... Kg8 {[%clk 0:00:07.7]}
61. h5 {[%clk 0:00:15.8]} 61... Kh8 {[%clk 0:00:08]} 62. h6 {[%clk 0:00:13.8]}
62... Kg8 {[%clk 0:00:08.2]} 63. h7+ {[%clk 0:00:14.5]} 63... Kh8 {[%clk
0:00:08.4]} 64. Kf6 {[%clk 0:00:14.8]} 64... Kxh7 {[%clk 0:00:08.2]} 1/2-1/2

[Event "*** Titled Tuesday Blitz"]
[Site "Chess.com"]
[Date "2020.05.26"]
[Round "3"]
[White "keepitcool9499"]
[Black "VMikhalevski"]
[Result "0-1"]
[WhiteElo "2428"]
[BlackElo "2739"]
[TimeControl "180+1"]
[EndTime "10:28:48 PDT"]
[Termination "VMikhalevski won by resignation"]

1. d4 {[%clk 0:03:00.9]} 1... Nf6 {[%clk 0:02:59.4]} 2. c4 {[%clk 0:03:01.8]}
2... g6 {[%clk 0:02:59.6]} 3. Nc3 {[%clk 0:03:01.3]} 3... d5 {[%clk 0:02:59.6]}
4. Nf3 {[%clk 0:03:01.1]} 4... Bg7 {[%clk 0:02:59]} 5. e3 {[%clk 0:03:00.7]}
5... O-O {[%clk 0:02:57.9]} 6. Be2 {[%clk 0:02:59.9]} 6... c5 {[%clk 0:02:54.4]}
7. dxc5 {[%clk 0:02:45.2]} 7... dxc4 {[%clk 0:02:54.4]} 8. O-O {[%clk
0:02:42.9]} 8... Qa5 {[%clk 0:02:49.9]} 9. Qd4 {[%clk 0:02:31.5]} 9... Na6
{[%clk 0:02:37.6]} 10. Qxc4 {[%clk 0:02:28.9]} 10... Qxc5 {[%clk 0:02:31.2]} 11.
Qxc5 {[%clk 0:02:22.1]} 11... Nxc5 {[%clk 0:02:31.2]} 12. Rd1 {[%clk 0:02:20.9]}
12... b6 {[%clk 0:02:22.5]} 13. Nd4 {[%clk 0:02:18.4]} 13... Bb7 {[%clk
0:02:22.1]} 14. b4 {[%clk 0:02:13.2]} 14... Nce4 {[%clk 0:02:13.5]} 15. Nxe4
{[%clk 0:02:08.9]} 15... Nxe4 {[%clk 0:02:12]} 16. Bb2 {[%clk 0:02:07.7]} 16...
Rac8 {[%clk 0:02:06.8]} 17. Rac1 {[%clk 0:02:03.6]} 17... Rfd8 {[%clk
0:01:56.7]} 18. Bf3 {[%clk 0:01:56.3]} 18... a6 {[%clk 0:01:47.7]} 19. a4 {[%clk
0:01:52.3]} 19... f5 {[%clk 0:01:42.6]} 20. b5 {[%clk 0:01:31.1]} 20... axb5
{[%clk 0:01:41.9]} 21. axb5 {[%clk 0:01:29]} 21... Rc5 {[%clk 0:01:39.6]} 22.
Ba3 {[%clk 0:01:23.7]} 22... Rxc1 {[%clk 0:01:25.8]} 23. Rxc1 {[%clk 0:01:24.6]}
23... Bxd4 {[%clk 0:01:24.4]} 24. exd4 {[%clk 0:01:22.3]} 24... Rxd4 {[%clk
0:01:22.1]} 25. Bxe7 {[%clk 0:01:19.8]} 25... Rd7 {[%clk 0:01:12.4]} 26. Bb4
{[%clk 0:01:16.7]} 26... Nf6 {[%clk 0:01:08]} 27. Bc6 {[%clk 0:01:09.8]} 27...
Bxc6 {[%clk 0:01:02]} 28. bxc6 {[%clk 0:01:10.7]} 28... Rc7 {[%clk 0:01:02.3]}
29. Bd6 {[%clk 0:01:08.6]} 29... Rc8 {[%clk 0:01:02.4]} 30. c7 {[%clk 0:01:06]}
30... Kf7 {[%clk 0:01:00.2]} 31. Rc6 {[%clk 0:01:02.9]} 31... Nd7 {[%clk
0:00:51.5]} 32. Kf1 {[%clk 0:00:58]} 32... b5 {[%clk 0:00:50.6]} 33. Ke2 {[%clk
0:00:55.5]} 33... Ke6 {[%clk 0:00:48.7]} 34. Bf4+ {[%clk 0:00:51.5]} 34... Ke7
{[%clk 0:00:47.3]} 35. Bg5+ {[%clk 0:00:47.8]} 35... Kf7 {[%clk 0:00:46.3]} 36.
Bd8 {[%clk 0:00:46.3]} 36... Nf8 {[%clk 0:00:44.5]} 37. Rb6 {[%clk 0:00:42.7]}
37... Ke8 {[%clk 0:00:43.9]} 38. Rxb5 {[%clk 0:00:40.7]} 38... Ne6 {[%clk
0:00:43.6]} 39. Re5 {[%clk 0:00:38.6]} 39... Kd7 {[%clk 0:00:43.1]} 40. Rd5+
{[%clk 0:00:38.8]} 40... Ke8 {[%clk 0:00:40.5]} 41. Rd6 {[%clk 0:00:35.3]} 41...
Nxc7 {[%clk 0:00:38.9]} 42. Bxc7 {[%clk 0:00:32.3]} 42... Rxc7 {[%clk
0:00:38.9]} 43. Rd3 {[%clk 0:00:31.3]} 43... Kf7 {[%clk 0:00:38.1]} 44. Kf3
{[%clk 0:00:31.6]} 44... Kf6 {[%clk 0:00:38]} 45. Rd6+ {[%clk 0:00:31.1]} 45...
Ke5 {[%clk 0:00:37.4]} 46. Rd3 {[%clk 0:00:30.3]} 46... g5 {[%clk 0:00:36.7]}
47. h3 {[%clk 0:00:29.2]} 47... h5 {[%clk 0:00:35.1]} 48. g4 {[%clk 0:00:29.3]}
48... fxg4+ {[%clk 0:00:34.6]} 49. hxg4 {[%clk 0:00:30.2]} 49... Rf7+ {[%clk
0:00:29]} 50. Kg3 {[%clk 0:00:28.8]} 50... h4+ {[%clk 0:00:28.5]} 51. Kg2 {[%clk
0:00:29.1]} 51... Ra7 {[%clk 0:00:21.7]} 52. Rb3 {[%clk 0:00:23.6]} 52... Ra4
{[%clk 0:00:20.5]} 53. f3 {[%clk 0:00:18.4]} 53... Kf4 {[%clk 0:00:20.6]} 54.
Kh3 {[%clk 0:00:16.6]} 54... Ra5 {[%clk 0:00:18.1]} 55. Rc3 {[%clk 0:00:15.7]}
55... Re5 {[%clk 0:00:17.5]} 56. Rb3 {[%clk 0:00:14.4]} 56... Re3 {[%clk
0:00:16.3]} 57. Rxe3 {[%clk 0:00:12.4]} 57... Kxe3 {[%clk 0:00:16.2]} 58. Kg2
{[%clk 0:00:13.3]} 58... Kf4 {[%clk 0:00:16.3]} 59. Kf2 {[%clk 0:00:13.3]} 59...
h3 {[%clk 0:00:16.5]} 60. Kg1 {[%clk 0:00:12.8]} 60... Kxf3 {[%clk 0:00:16.2]}
61. Kh2 {[%clk 0:00:13.7]} 61... Kxg4 {[%clk 0:00:16.4]} 62. Kg1 {[%clk
0:00:14.2]} 62... Kg3 {[%clk 0:00:16.6]} 63. Kh1 {[%clk 0:00:15.1]} 63... g4
{[%clk 0:00:17]} 64. Kg1 {[%clk 0:00:16]} 64... Kf3 {[%clk 0:00:17.1]} 65. Kh1
{[%clk 0:00:16.9]} 65... g3 {[%clk 0:00:17.2]} 66. Kg1 {[%clk 0:00:17.8]} 66...
g2 {[%clk 0:00:17.5]} 67. Kh2 {[%clk 0:00:17.8]} 67... Kf2 {[%clk 0:00:18]} 68.
Kxh3 {[%clk 0:00:17.5]} 68... g1=Q {[%clk 0:00:18.2]} 69. Kh4 {[%clk 0:00:18.4]}
0-1

[Event "*** Titled Tuesday Blitz"]
[Site "Chess.com"]
[Date "2020.05.26"]
[Round "3"]
[White "TenisMaster"]
[Black "Matveev_Vladimir"]
[Result "0-1"]
[WhiteElo "2812"]
[BlackElo "2578"]
[TimeControl "180+1"]
[EndTime "10:28:50 PDT"]
[Termination "Matveev_Vladimir won on time"]

1. e4 {[%clk 0:03:00.9]} 1... d6 {[%clk 0:02:59.3]} 2. d4 {[%clk 0:03:00.4]}
2... g6 {[%clk 0:02:59.7]} 3. Nc3 {[%clk 0:03:00.9]} 3... Bg7 {[%clk 0:03:00.2]}
4. Be3 {[%clk 0:03:00.6]} 4... a6 {[%clk 0:03:00.4]} 5. h4 {[%clk 0:03:00.2]}
5... Nf6 {[%clk 0:02:58.4]} 6. f3 {[%clk 0:02:53.8]} 6... b5 {[%clk 0:02:56.8]}
7. Qd2 {[%clk 0:02:53.6]} 7... h5 {[%clk 0:02:55.3]} 8. O-O-O {[%clk 0:02:48.2]}
8... c6 {[%clk 0:02:55.4]} 9. Kb1 {[%clk 0:02:46.8]} 9... Qc7 {[%clk 0:02:54.5]}
10. Nce2 {[%clk 0:02:41.2]} 10... Nbd7 {[%clk 0:02:40.8]} 11. Nh3 {[%clk
0:02:29.2]} 11... e5 {[%clk 0:02:40.4]} 12. Ng5 {[%clk 0:02:28]} 12... O-O
{[%clk 0:02:36.8]} 13. g4 {[%clk 0:02:21]} 13... exd4 {[%clk 0:02:23.1]} 14.
Nxd4 {[%clk 0:02:00.1]} 14... Ne5 {[%clk 0:02:08]} 15. gxh5 {[%clk 0:01:46.1]}
15... Nxh5 {[%clk 0:02:07.4]} 16. f4 {[%clk 0:01:10.4]} 16... Nc4 {[%clk
0:02:00.6]} 17. Bxc4 {[%clk 0:01:09.6]} 17... bxc4 {[%clk 0:02:01.5]} 18. Ne2
{[%clk 0:01:09.8]} 18... Bg4 {[%clk 0:01:46]} 19. Bd4 {[%clk 0:00:37.9]} 19...
Bxd4 {[%clk 0:01:41.2]} 20. Nxd4 {[%clk 0:00:38]} 20... Bxd1 {[%clk 0:01:40.8]}
21. Qxd1 {[%clk 0:00:38.5]} 21... c3 {[%clk 0:01:28.1]} 22. f5 {[%clk 0:00:26]}
22... c5 {[%clk 0:01:27.4]} 23. fxg6 {[%clk 0:00:21.9]} 23... fxg6 {[%clk
0:01:27.2]} 24. Nb3 {[%clk 0:00:19.6]} 24... Nf4 {[%clk 0:01:02]} 25. h5 {[%clk
0:00:18.1]} 25... Qe7 {[%clk 0:00:54.6]} 26. Qg4 {[%clk 0:00:13.8]} 26... gxh5
{[%clk 0:00:37.8]} 27. Qg3 {[%clk 0:00:13.9]} 27... Qg7 {[%clk 0:00:37.1]} 28.
Qh4 {[%clk 0:00:07.5]} 28... cxb2 {[%clk 0:00:27.5]} 29. Nf3 {[%clk 0:00:07.3]}
29... Ne2 {[%clk 0:00:23.2]} 30. Qxh5 {[%clk 0:00:05.1]} 30... Nc3+ {[%clk
0:00:16.4]} 31. Kxb2 {[%clk 0:00:05.3]} 31... Nxe4+ {[%clk 0:00:14.1]} 32. Ka3
{[%clk 0:00:04.3]} 32... Nf6 {[%clk 0:00:08.3]} 33. Qh4 {[%clk 0:00:03.6]} 33...
Kf7 {[%clk 0:00:06.1]} 34. Rg1 {[%clk 0:00:03.9]} 34... Qh7 {[%clk 0:00:05.9]}
35. Qc4+ {[%clk 0:00:02.9]} 35... Ke7 {[%clk 0:00:05.9]} 36. Re1+ {[%clk
0:00:03.5]} 36... Kd8 {[%clk 0:00:05.7]} 37. Qe6 {[%clk 0:00:03.7]} 37... Qd7
{[%clk 0:00:05.1]} 38. Ng5 {[%clk 0:00:03.7]} 38... Qxe6 {[%clk 0:00:04.5]} 39.
Nxe6+ {[%clk 0:00:04.6]} 39... Kd7 {[%clk 0:00:05.4]} 40. Nxf8+ {[%clk
0:00:05.1]} 40... Rxf8 {[%clk 0:00:06.3]} 41. Rh1 {[%clk 0:00:05.3]} 41... Nd5
{[%clk 0:00:06.3]} 42. Rh7+ {[%clk 0:00:05.4]} 42... Kc6 {[%clk 0:00:06.8]} 43.
Rh6 {[%clk 0:00:05.6]} 43... Nc7 {[%clk 0:00:06.6]} 44. Na5+ {[%clk 0:00:05.3]}
44... Kb5 {[%clk 0:00:05.3]} 45. Nb3 {[%clk 0:00:04.6]} 45... Rd8 {[%clk
0:00:05.6]} 46. Kb2 {[%clk 0:00:04.3]} 46... Kb6 {[%clk 0:00:06.1]} 47. Nd2
{[%clk 0:00:04.3]} 47... Kc6 {[%clk 0:00:06.5]} 48. Nc4 {[%clk 0:00:04.5]} 48...
Nb5 {[%clk 0:00:06.7]} 49. Ne5+ {[%clk 0:00:03.8]} 49... Kd5 {[%clk 0:00:07]}
50. Nd3 {[%clk 0:00:02.8]} 50... Rb8 {[%clk 0:00:07.5]} 51. Rh5+ {[%clk
0:00:02.8]} 51... Kc6 {[%clk 0:00:07.9]} 52. Kc1 {[%clk 0:00:02.6]} 52... a5
{[%clk 0:00:08.4]} 53. Rh6 {[%clk 0:00:01.9]} 53... a4 {[%clk 0:00:07.6]} 54.
Ne5+ {[%clk 0:00:02]} 54... Kd5 {[%clk 0:00:07.8]} 55. Nd7 {[%clk 0:00:02.2]}
55... Rb7 {[%clk 0:00:07.3]} 56. Rh5+ {[%clk 0:00:01.9]} 56... Kc6 {[%clk
0:00:07.5]} 57. Nf6 {[%clk 0:00:02.1]} 57... a3 {[%clk 0:00:07.9]} 58. Rh3
{[%clk 0:00:01.4]} 58... Rf7 {[%clk 0:00:07.1]} 0-1